[Event "Slovakia Open Piestany-A 2022"]
[Site "Piestany"]
[Date "2022.07.15"]
[Round "6.18"]
[White "Mullick, Raahil"]
[Black "Pniaczek, Marek"]
[Result "1-0"]
[ECO "C92"]
[WhiteElo "2237"]
[BlackElo "2312"]
[Annotator "ChessBase"]
[PlyCount "111"]
[EventDate "2022.07.12"]
[EventType "swiss"]
[EventCountry "SVK"]
[SourceTitle "playchess.com"]
[Source "ChessBase"]
[SourceQuality "1"]
[TimeControl "40/5400+30:1800+30"]

1. e4 {[%emt 0:00:03]} e5 {[%emt 0:01:07]} 2. Nf3 {[%emt 0:00:03]} Nc6 {[%emt 0:00:04]} 3. Bb5 {[%emt 0:00:06]} a6 {[%emt 0:00:05]} 4. Ba4 {[%emt 0:00:04]} Nf6 {[%emt 0:00:05]} 5. O-O {[%emt 0:00:08]} Be7 {[%emt 0:00:09]} 6. Re1 {[%emt 0:00:04]} b5 {[%emt 0:00:41]} 7. Bb3 {[%emt 0:00:04]} d6 {[%emt 0:00:00]} 8. c3 {[%emt 0:00:03]} O-O {[%emt 0:00:00]} 9. h3 {[%emt 0:00:03]} Bb7 {[%emt 0:00:03]} 10. d4 {[%emt 0:00:07]} Nd7 {[%emt 0:00:15]} 11. Nbd2 {[%emt 0:04:32]} exd4 {[%emt 0:00:23]} 12. cxd4 {[%emt 0:00:10]} Re8 {[%emt 0:00:29]} 13. Nf1 {[%emt 0:00:16]} Na5 {[%emt 0:00:09]} 14. Bc2 {[%emt 0:00:19]} Bf6 {[%emt 0:00:07]} 15. Bf4 {[%emt 0:04:40]} Nf8 {[%emt 0:03:08]} 16. Ng3 {[%emt 0:08:33]} Ne6 {[%emt 0:02:07]} 17. Bd2 {[%emt 0:01:53]} c5 {[%emt 0:09:47]} 18. d5 {[%emt 0:02:37]} Nd4 {[%emt 0:00:48]} 19. Nxd4 {[%emt 0:00:38]} Bxd4 {[%emt 0:00:15]} 20. b3 {[%emt 0:09:56]} Bc8 {[%emt 0:20:55]} 21. Qf3 {[%emt 0:09:39]} Bxa1 {[%emt 0:06:46]} 22. Rxa1 {[%emt 0:00:12]} Ra7 {[%emt 0:03:31]} 23. Nh5 {[%emt 0:04:04]} f6 {[%emt 0:03:09]} 24. Qg3 {[%emt 0:03:10]} Rf7 {[%emt 0:03:30]} 25. Bc3 {[%emt 0:16:44]} Kf8 {[%emt 0:11:17]} 26. Re1 {[%emt 0:13:08]} b4 {[%emt 0:02:29]} 27. Bb2 {[%emt 0:01:55]} c4 {[%emt 0:06:41]} 28. Bd4 {[%emt 0:00:07]} cxb3 {[%emt 0:00:18]} 29. axb3 {[%emt 0:00:13]} Nb7 {[%emt 0:00:25]} 30. Qh4 {[%emt 0:02:07]} Nc5 {[%emt 0:03:58]} 31. Nf4 {[%emt 0:12:33]} Kg8 {[%emt 0:13:59]} 32. Qg3 {[%emt 0:00:32]} Qe7 {[%emt 0:05:51]} 33. h4 {[%emt 0:01:00]} Nd7 {[%emt 0:00:52]} 34. h5 {[%emt 0:00:57]} Ne5 {[%emt 0:01:06]} 35. h6 {[%emt 0:01:20]} Ng4 {[%emt 0:00:30]} 36. hxg7 {[%emt 0:01:19]} Rxg7 {[%emt 0:00:24]} 37. Nh5 {[%emt 0:00:11]} Rg6 {[%emt 0:00:29]} 38. f4 {[%emt 0:03:51]} Kf7 {[%emt 0:00:59]} 39. f5 {[%emt 0:01:36]} Rgg8 {[%emt 0:00:43]} 40. Rf1 {[%emt 0:01:01]} Ne5 {[%emt 0:01:50]} 41. Qh3 {[%emt 0:01:27]} Qf8 {[%emt 0:11:33]} 42. Bd1 {[%emt 0:14:03]} Ke7 {[%emt 0:06:49]} 43. Bf2 {[%emt 0:00:16]} Nf7 {[%emt 0:02:30]} 44. Qe3 {[%emt 0:01:34]} Qh6 {[%emt 0:02:43]} 45. Qa7+ {[%emt 0:00:03]} Bd7 {[%emt 0:00:06]} 46. Be3 {[%emt 0:00:06]} Rg5 {[%emt 0:00:20]} 47. Rf2 {[%emt 0:05:46]} Reg8 {[%emt 0:01:30]} 48. Bf4 {[%emt 0:02:06]} Qf8 {[%emt 0:01:18]} 49. Nxf6 {[%emt 0:01:08]} Kxf6 {[%emt 0:00:23]} 50. Qxd7 {[%emt 0:00:09]} Qe7 {[%emt 0:03:12]} 51. Qe6+ {[%emt 0:01:18]} Qxe6 {[%emt 0:00:01]} 52. fxe6 {[%emt 0:00:06]} Ne5 {[%emt 0:00:07]} 53. Bxg5+ {[%emt 0:00:08]} Kxg5 {[%emt 0:00:02]} 54. Rf5+ {[%emt 0:00:07]} Kg6 {[%emt 0:00:10]} 55. Bh5+ {[%emt 0:00:07]} Kg7 {[%emt 0:00:03]} 56. Rxe5 {[%emt 0:00:04]} 1-0

[Event "Slovakia Open Piestany-A 2022"]
[Site "Piestany"]
[Date "2022.07.15"]
[Round "6.19"]
[White "Matras, Ondrej"]
[Black "Leszko, Bence"]
[Result "1/2-1/2"]
[ECO "D40"]
[WhiteElo "2229"]
[BlackElo "2241"]
[Annotator "ChessBase"]
[PlyCount "208"]
[EventDate "2022.07.12"]
[EventType "swiss"]
[EventCountry "SVK"]
[SourceTitle "playchess.com"]
[Source "ChessBase"]
[SourceQuality "1"]
[TimeControl "40/5400+30:1800+30"]

1. d4 {[%emt 0:06:26]} d5 {[%emt 0:01:15]} 2. c4 {[%emt 0:00:02]} e6 {[%emt 0:00:07]} 3. Nc3 {[%emt 0:00:04]} c5 {[%emt 0:00:03]} 4. e3 {[%emt 0:00:09]} Nf6 {[%emt 0:00:10]} 5. Nf3 {[%emt 0:00:02]} Nc6 {[%emt 0:00:06]} 6. a3 {[%emt 0:00:04]} dxc4 {[%emt 0:00:23]} 7. Bxc4 {[%emt 0:00:04]} a6 {[%emt 0:00:05]} 8. O-O {[%emt 0:00:16]} b5 {[%emt 0:00:04]} 9. Ba2 {[%emt 0:00:57]} Bb7 {[%emt 0:00:09]} 10. Qe2 {[%emt 0:02:25]} cxd4 {[%emt 0:00:08]} 11. Rd1 {[%emt 0:01:22]} b4 {[%emt 0:00:30]} 12. axb4 {[%emt 0:03:22]} Nxb4 {[%emt 0:00:00]} 13. Bb3 {[%emt 0:05:24]} d3 {[%emt 0:14:41]} 14. Ba4+ {[%emt 0:00:02]} Bc6 {[%emt 0:00:05]} 15. Bxc6+ {[%emt 0:00:58]} Nxc6 {[%emt 0:00:01]} 16. Rxd3 {[%emt 0:00:46]} Qb6 {[%emt 0:00:51]} 17. e4 {[%emt 0:01:20]} Be7 {[%emt 0:00:13]} 18. e5 {[%emt 0:08:58]} Nd7 {[%emt 0:00:41]} 19. Be3 {[%emt 0:00:50]} Qc7 {[%emt 0:00:57]} 20. Nb5 {[%emt 0:01:08]} Qb8 {[%emt 0:01:16]} 21. Nd6+ {[%emt 0:18:36]} Bxd6 {[%emt 0:00:11]} 22. exd6 {[%emt 0:01:05]} O-O {[%emt 0:01:40]} 23. Bf4 {[%emt 0:04:06]} Qb5 {[%emt 0:00:23]} 24. Rd2 {[%emt 0:03:21]} Qxe2 {[%emt 0:02:52]} 25. Rxe2 {[%emt 0:00:03]} Nb4 {[%emt 0:00:08]} 26. Ne5 {[%emt 0:01:19]} Nxe5 {[%emt 0:00:16]} 27. Bxe5 {[%emt 0:00:02]} Rfd8 {[%emt 0:00:59]} 28. h4 {[%emt 0:02:39]} Nd5 {[%emt 0:01:03]} 29. Rc2 {[%emt 0:01:00]} f6 {[%emt 0:04:29]} 30. Bg3 {[%emt 0:00:04]} e5 {[%emt 0:02:08]} 31. Rc6 {[%emt 0:00:04]} Nb4 {[%emt 0:11:16]} 32. Rb6 {[%emt 0:00:14]} Rab8 {[%emt 0:00:16]} 33. Rxb8 {[%emt 0:00:38]} Rxb8 {[%emt 0:00:01]} 34. Rd1 {[%emt 0:02:32]} Kf7 {[%emt 0:02:04]} 35. f4 {[%emt 0:00:13]} Ke6 {[%emt 0:23:23]} 36. fxe5 {[%emt 0:12:04]} fxe5 {[%emt 0:00:16]} 37. h5 {[%emt 0:01:18]} Rd8 {[%emt 0:00:56]} 38. d7 {[%emt 0:00:47]} Nc6 {[%emt 0:01:12]} 39. Ra1 {[%emt 0:00:21]} a5 {[%emt 0:00:12]} 40. Rc1 {[%emt 0:00:53]} Kxd7 {[%emt 0:02:32]} 41. Rc5 {[%emt 0:30:22]} Kd6 {[%emt 0:02:00]} 42. Rb5 {[%emt 0:00:20]} a4 {[%emt 0:03:38]} 43. Kf2 {[%emt 0:01:39]} Ke6 {[%emt 0:01:34]} 44. Rc5 {[%emt 0:00:23]} Kd6 {[%emt 0:07:53]} 45. Rc4 {[%emt 0:01:32]} Ra8 {[%emt 0:01:57]} 46. Rg4 {[%emt 0:00:28]} Ra7 {[%emt 0:00:21]} 47. Ke3 {[%emt 0:00:32]} Ke6 {[%emt 0:00:43]} 48. Be1 {[%emt 0:02:25]} Ne7 {[%emt 0:01:39]} 49. Ke4 {[%emt 0:03:30]} a3 {[%emt 0:05:04]} 50. bxa3 {[%emt 0:00:07]} Rxa3 {[%emt 0:00:55]} 51. Bb4 {[%emt 0:10:53]} Ra4 {[%emt 0:00:40]} 52. Kf3 {[%emt 0:00:03]} Nf5 {[%emt 0:02:05]} 53. Bf8 {[%emt 0:00:12]} Ra7 {[%emt 0:06:11]} 54. Bc5 {[%emt 0:01:38]} Rc7 {[%emt 0:00:29]} 55. Bf2 {[%emt 0:00:29]} Rc3+ {[%emt 0:01:34]} 56. Ke2 {[%emt 0:00:08]} Rc2+ {[%emt 0:00:35]} 57. Kf1 {[%emt 0:01:28]} Rc1+ {[%emt 0:01:37]} 58. Ke2 {[%emt 0:00:02]} Rh1 {[%emt 0:00:22]} 59. Ra4 {[%emt 0:00:01]} Rc1 {[%emt 0:01:18]} 60. g4 {[%emt 0:01:25]} Rc2+ {[%emt 0:01:43]} 61. Kf3 {[%emt 0:00:29]} Rc3+ {[%emt 0:00:39]} 62. Ke2 {[%emt 0:01:11]} Ne7 {[%emt 0:01:02]} 63. Ra7 {[%emt 0:00:31]} Rc2+ {[%emt 0:01:27]} 64. Kf1 {[%emt 0:00:53]} Rc4 {[%emt 0:12:46]} 65. Bh4 {[%emt 0:00:19]} Nd5 {[%emt 0:00:16]} 66. Rxg7 {[%emt 0:00:22]} Rxg4 {[%emt 0:00:24]} 67. Rxg4 {[%emt 0:01:00]} Ne3+ {[%emt 0:00:30]} 68. Kf2 {[%emt 0:01:42]} Nxg4+ {[%emt 0:00:00]} 69. Kf3 {[%emt 0:00:08]} Kf5 {[%emt 0:00:00]} 70. Be7 {[%emt 0:00:19]} h6 {[%emt 0:06:04]} 71. Kg3 {[%emt 0:00:15]} Nf6 {[%emt 0:00:40]} 72. Kh4 {[%emt 0:00:20]} Ng8 {[%emt 0:00:45]} 73. Bb4 {[%emt 0:01:34]} Nf6 {[%emt 0:02:01]} 74. Bd2 {[%emt 0:01:04]} Ng4 {[%emt 0:01:28]} 75. Kg3 {[%emt 0:00:17]} e4 {[%emt 0:01:27]} 76. Bc1 {[%emt 0:00:02]} Nf6 {[%emt 0:00:46]} 77. Bxh6 {[%emt 0:01:07]} Nxh5+ {[%emt 0:00:01]} 78. Kf2 {[%emt 0:00:17]} Ke5 {[%emt 0:00:15]} 79. Be3 {[%emt 0:00:20]} Kd5 {[%emt 0:00:09]} 80. Bb6 {[%emt 0:01:18]} Ng7 {[%emt 0:00:07]} 81. Ke2 {[%emt 0:00:17]} Nf5 {[%emt 0:00:15]} 82. Ba7 {[%emt 0:00:20]} Nd6 {[%emt 0:00:28]} 83. Bb6 {[%emt 0:00:21]} Nb5 {[%emt 0:00:15]} 84. Ke3 {[%emt 0:00:31]} Na3 {[%emt 0:00:18]} 85. Ba7 {[%emt 0:00:17]} Nb1 {[%emt 0:00:10]} 86. Bd4 {[%emt 0:00:38]} Na3 {[%emt 0:00:09]} 87. Ba7 {[%emt 0:00:13]} Nc4+ {[%emt 0:00:05]} 88. Ke2 {[%emt 0:00:06]} Ne5 {[%emt 0:00:09]} 89. Ke3 {[%emt 0:00:22]} Nf7 {[%emt 0:00:08]} 90. Bb6 {[%emt 0:00:48]} Nh8 {[%emt 0:00:10]} 91. Ba7 {[%emt 0:00:29]} Ng6 {[%emt 0:00:07]} 92. Bb6 {[%emt 0:00:07]} Ke5 {[%emt 0:00:00]} 93. Bc7+ {[%emt 0:00:11]} Kf5 {[%emt 0:00:00]} 94. Bd6 {[%emt 0:00:30]} Nh4 {[%emt 0:00:25]} 95. Bb8 {[%emt 0:00:17]} Nf3 {[%emt 0:00:11]} 96. Bc7 {[%emt 0:00:14]} Ne1 {[%emt 0:00:40]} 97. Bb8 {[%emt 0:00:20]} Nd3 {[%emt 0:00:27]} 98. Bc7 {[%emt 0:00:14]} Nb2 {[%emt 0:00:07]} 99. Bb8 {[%emt 0:00:18]} Na4 {[%emt 0:00:27]} 100. Bc7 {[%emt 0:00:38]} Nc3 {[%emt 0:00:08]} 101. Bb8 {[%emt 0:00:12]} Nd5+ {[%emt 0:00:05]} 102. Kd4 {[%emt 0:00:32]} Nb4 {[%emt 0:01:47]} 103. Ke3 {[%emt 0:00:05]} Na6 {[%emt 0:00:06]} 104. Bd6 {[%emt 0:00:29]} Ke6 {[%emt 0:00:07]} 1/2-1/2

[Event "Slovakia Open Piestany-A 2022"]
[Site "Piestany"]
[Date "2022.07.15"]
[Round "6.20"]
[White "Nadzamova, Viktoria"]
[Black "Aradhya, Garg"]
[Result "0-1"]
[ECO "D11"]
[WhiteElo "2133"]
[BlackElo "2229"]
[Annotator "ChessBase"]
[PlyCount "84"]
[EventDate "2022.07.12"]
[EventType "swiss"]
[EventCountry "SVK"]
[SourceTitle "playchess.com"]
[Source "ChessBase"]
[SourceQuality "1"]
[TimeControl "40/5400+30:1800+30"]

1. d4 {[%emt 0:04:31]} d5 {[%emt 0:00:03]} 2. Nf3 {[%emt 0:00:17]} Nf6 {[%emt 0:00:03]} 3. g3 {[%emt 0:00:14]} Bf5 {[%emt 0:02:45]} 4. Bg2 {[%emt 0:00:23]} e6 {[%emt 0:00:02]} 5. O-O {[%emt 0:00:12]} Be7 {[%emt 0:01:23]} 6. c4 {[%emt 0:12:36]} O-O {[%emt 0:00:36]} 7. Nc3 {[%emt 0:01:28]} c6 {[%emt 0:11:24]} 8. Nh4 {[%emt 0:19:56]} Bg4 {[%emt 0:04:23]} 9. h3 {[%emt 0:00:11]} Bh5 {[%emt 0:00:01]} 10. g4 {[%emt 0:04:52]} Nfd7 {[%emt 0:01:19]} 11. gxh5 {[%emt 0:06:49]} Bxh4 {[%emt 0:00:02]} 12. e4 {[%emt 0:00:11]} dxc4 {[%emt 0:00:51]} 13. Qe2 {[%emt 0:05:37]} e5 {[%emt 0:03:09]} 14. Be3 {[%emt 0:04:17]} Bg5 {[%emt 0:09:07]} 15. Rad1 {[%emt 0:02:21]} Bxe3 {[%emt 0:01:43]} 16. Qxe3 {[%emt 0:00:01]} Qe7 {[%emt 0:11:03]} 17. Ne2 {[%emt 0:03:45]} Na6 {[%emt 0:04:27]} 18. f4 {[%emt 0:04:02]} exf4 {[%emt 0:03:01]} 19. Qxf4 {[%emt 0:00:40]} f5 {[%emt 0:02:35]} 20. e5 {[%emt 0:01:24]} Nc7 {[%emt 0:03:43]} 21. Ng3 {[%emt 0:02:54]} g6 {[%emt 0:00:02]} 22. hxg6 {[%emt 0:02:10]} hxg6 {[%emt 0:00:02]} 23. Ne2 {[%emt 0:06:22]} Ne6 {[%emt 0:01:18]} 24. Qc1 {[%emt 0:00:25]} Nb6 {[%emt 0:00:05]} 25. Nf4 {[%emt 0:02:36]} Qf7 {[%emt 0:02:16]} 26. h4 {[%emt 0:04:01]} Rad8 {[%emt 0:01:22]} 27. Nxe6 {[%emt 0:02:11]} Qxe6 {[%emt 0:00:02]} 28. h5 {[%emt 0:00:12]} Rd7 {[%emt 0:02:29]} 29. Qg5 {[%emt 0:01:18]} Rg7 {[%emt 0:00:01]} 30. h6 {[%emt 0:00:35]} Rgf7 {[%emt 0:00:29]} 31. Bh3 {[%emt 0:01:32]} Kh7 {[%emt 0:00:07]} 32. Rd2 {[%emt 0:01:13]} Qe7 {[%emt 0:01:06]} 33. Qg3 {[%emt 0:01:32]} f4 {[%emt 0:01:13]} 34. Qf3 {[%emt 0:00:54]} Nd5 {[%emt 0:00:46]} 35. Rh2 {[%emt 0:02:07]} Ne3 {[%emt 0:01:40]} 36. Rff2 {[%emt 0:00:01]} Qg5+ {[%emt 0:02:07]} 37. Kh1 {[%emt 0:00:37]} Qh5 {[%emt 0:00:21]} 38. Bg2 {[%emt 0:04:14]} Qxf3 {[%emt 0:00:24]} 39. Rxf3 {[%emt 0:00:17]} g5 {[%emt 0:01:15]} 40. Rf2 {[%emt 0:00:51]} f3 {[%emt 0:00:31]} 41. e6 {[%emt 0:02:00]} fxg2+ {[%emt 0:00:13]} 42. Rhxg2 {[%emt 0:00:08]} Rxf2 {[%emt 0:00:19]} 0-1

[Event "Slovakia Open Piestany-A 2022"]
[Site "Piestany"]
[Date "2022.07.15"]
[Round "6.21"]
[White "Warchol, Kamil"]
[Black "Zvarik, Martin"]
[Result "1/2-1/2"]
[ECO "D02"]
[WhiteElo "2121"]
[BlackElo "2213"]
[Annotator "ChessBase"]
[PlyCount "66"]
[EventDate "2022.07.12"]
[EventType "swiss"]
[EventCountry "SVK"]
[SourceTitle "playchess.com"]
[Source "ChessBase"]
[SourceQuality "1"]
[TimeControl "40/5400+30:1800+30"]

1. Nf3 {[%emt 0:00:06]} d5 {[%emt 0:01:32]} 2. e3 {[%emt 0:01:08]} Bg4 {[%emt 0:01:41]} 3. d4 {[%emt 0:08:09]} Nd7 {[%emt 0:00:40]} 4. Be2 {[%emt 0:01:20]} c6 {[%emt 0:01:20]} 5. Nbd2 {[%emt 0:04:06]} e6 {[%emt 0:00:52]} 6. c4 {[%emt 0:03:22]} Bd6 {[%emt 0:00:34]} 7. e4 {[%emt 0:06:42]} dxe4 {[%emt 0:03:38]} 8. Nxe4 {[%emt 0:00:11]} Bc7 {[%emt 0:00:06]} 9. Qb3 {[%emt 0:18:04]} Rb8 {[%emt 0:02:11]} 10. Be3 {[%emt 0:09:06]} Ne7 {[%emt 0:02:50]} 11. O-O-O {[%emt 0:03:39]} b5 {[%emt 0:04:35]} 12. cxb5 {[%emt 0:09:54]} O-O {[%emt 0:04:02]} 13. Nc3 {[%emt 0:04:48]} a6 {[%emt 0:01:22]} 14. h3 {[%emt 0:01:29]} Bxf3 {[%emt 0:01:32]} 15. Bxf3 {[%emt 0:02:12]} axb5 {[%emt 0:00:17]} 16. Bg5 {[%emt 0:03:55]} Rb6 {[%emt 0:00:27]} 17. Rhe1 {[%emt 0:03:25]} Nf6 {[%emt 0:01:58]} 18. Ne4 {[%emt 0:02:07]} Nxe4 {[%emt 0:12:18]} 19. Bxe4 {[%emt 0:00:41]} h6 {[%emt 0:03:08]} 20. Bxe7 {[%emt 0:01:34]} Qxe7 {[%emt 0:00:42]} 21. Kb1 {[%emt 0:00:11]} Rd8 {[%emt 0:05:37]} 22. Rc1 {[%emt 0:02:10]} Rxd4 {[%emt 0:02:05]} 23. Bxc6 {[%emt 0:01:39]} Bf4 {[%emt 0:00:08]} 24. Rc2 {[%emt 0:00:38]} Qd6 {[%emt 0:03:14]} 25. Bf3 {[%emt 0:01:43]} Rb8 {[%emt 0:00:46]} 26. Rc6 {[%emt 0:05:57]} Qd7 {[%emt 0:00:52]} 27. g3 {[%emt 0:01:52]} Bd2 {[%emt 0:01:31]} 28. Rd1 {[%emt 0:00:41]} b4 {[%emt 0:05:38]} 29. Qc2 {[%emt 0:00:59]} Rd8 {[%emt 0:00:48]} 30. Rc7 {[%emt 0:00:55]} Qb5 {[%emt 0:03:07]} 31. Rc8 {[%emt 0:00:48]} Qe8 {[%emt 0:03:11]} 32. Rxd8 {[%emt 0:00:46]} Qxd8 {[%emt 0:00:05]} 33. h4 {[%emt 0:00:39]} Qd7 {[%emt 0:05:41]} 1/2-1/2

[Event "Slovakia Open Piestany-A 2022"]
[Site "Piestany"]
[Date "2022.07.15"]
[Round "6.22"]
[White "Brhel, Jan"]
[Black "Delgerdalai, Bayarjavkhlan"]
[Result "1/2-1/2"]
[ECO "D33"]
[WhiteElo "2018"]
[BlackElo "2209"]
[Annotator "ChessBase"]
[PlyCount "43"]
[EventDate "2022.07.12"]
[EventType "swiss"]
[EventCountry "SVK"]
[SourceTitle "playchess.com"]
[Source "ChessBase"]
[SourceQuality "1"]
[TimeControl "40/5400+30:1800+30"]

1. Nf3 {[%emt 0:00:10]} d5 {[%emt 0:00:09]} 2. d4 {[%emt 0:00:08]} Nf6 {[%emt 0:00:34]} 3. c4 {[%emt 0:00:17]} e6 {[%emt 0:00:29]} 4. Nc3 {[%emt 0:00:09]} c5 {[%emt 0:01:02]} 5. cxd5 {[%emt 0:00:25]} exd5 {[%emt 0:00:52]} 6. g3 {[%emt 0:00:18]} Nc6 {[%emt 0:00:21]} 7. Bg2 {[%emt 0:00:20]} cxd4 {[%emt 0:00:04]} 8. Nxd4 {[%emt 0:00:12]} Bc5 {[%emt 0:00:05]} 9. e3 {[%emt 0:01:45]} O-O {[%emt 0:01:14]} 10. O-O {[%emt 0:00:20]} Re8 {[%emt 0:06:55]} 11. a3 {[%emt 0:00:50]} Bg4 {[%emt 0:05:55]} 12. Nxc6 {[%emt 0:01:15]} bxc6 {[%emt 0:00:52]} 13. Qa4 {[%emt 0:00:11]} Qd7 {[%emt 0:01:53]} 14. b4 {[%emt 0:01:33]} Bb6 {[%emt 0:01:34]} 15. b5 {[%emt 0:03:06]} cxb5 {[%emt 0:03:28]} 16. Qxb5 {[%emt 0:00:40]} Qxb5 {[%emt 0:00:29]} 17. Nxb5 {[%emt 0:00:07]} Be2 {[%emt 0:00:16]} 18. Nd6 {[%emt 0:00:09]} Re6 {[%emt 0:05:58]} 19. Re1 {[%emt 0:00:13]} Ba6 {[%emt 0:07:31]} 20. Nf5 {[%emt 0:01:13]} Re5 {[%emt 0:18:38]} 21. Nh4 {[%emt 0:06:56]} Re6 {[%emt 0:07:18]} 22. Bb2 {[%emt 0:02:53]} 1/2-1/2

[Event "Slovakia Open Piestany-A 2022"]
[Site "Piestany"]
[Date "2022.07.15"]
[Round "6.23"]
[White "Walter, Ema"]
[Black "Michelle Catherina, P."]
[Result "1/2-1/2"]
[ECO "B12"]
[WhiteElo "2000"]
[BlackElo "2141"]
[Annotator "ChessBase"]
[PlyCount "72"]
[EventDate "2022.07.12"]
[EventType "swiss"]
[EventCountry "SVK"]
[SourceTitle "playchess.com"]
[Source "ChessBase"]
[SourceQuality "1"]
[TimeControl "40/5400+30:1800+30"]

1. e4 {[%emt 0:00:04]} c6 {[%emt 0:02:15]} 2. d4 {[%emt 0:00:05]} d5 {[%emt 0:00:04]} 3. f3 {[%emt 0:00:04]} dxe4 {[%emt 0:00:19]} 4. fxe4 {[%emt 0:00:07]} e5 {[%emt 0:00:08]} 5. Nf3 {[%emt 0:00:04]} Bg4 {[%emt 0:00:12]} 6. c3 {[%emt 0:00:06]} Nd7 {[%emt 0:00:48]} 7. Be2 {[%emt 0:00:19]} Bd6 {[%emt 0:04:44]} 8. O-O {[%emt 0:00:32]} Ngf6 {[%emt 0:02:51]} 9. Nbd2 {[%emt 0:00:36]} b5 {[%emt 0:06:00]} 10. h3 {[%emt 0:09:38]} Bh5 {[%emt 0:03:51]} 11. Nh4 {[%emt 0:32:46]} Bg6 {[%emt 0:03:31]} 12. Bf3 {[%emt 0:09:10]} O-O {[%emt 0:06:19]} 13. c4 {[%emt 0:09:04]} exd4 {[%emt 0:13:31]} 14. cxb5 {[%emt 0:00:52]} Ne5 {[%emt 0:07:03]} 15. Nxg6 {[%emt 0:02:09]} hxg6 {[%emt 0:01:20]} 16. bxc6 {[%emt 0:00:24]} Rc8 {[%emt 0:02:14]} 17. Nb3 {[%emt 0:03:23]} Rxc6 {[%emt 0:03:19]} 18. Bf4 {[%emt 0:04:35]} d3 {[%emt 0:03:40]} 19. Kh1 {[%emt 0:03:19]} Qe7 {[%emt 0:05:34]} 20. Rc1 {[%emt 0:06:42]} Rxc1 {[%emt 0:05:10]} 21. Qxc1 {[%emt 0:02:17]} Nxf3 {[%emt 0:04:24]} 22. Rxf3 {[%emt 0:00:59]} Nxe4 {[%emt 0:03:47]} 23. Qe3 {[%emt 0:04:58]} Rd8 {[%emt 0:03:47]} 24. Bxd6 {[%emt 0:01:04]} Rxd6 {[%emt 0:00:12]} 25. Nd2 {[%emt 0:00:31]} f5 {[%emt 0:01:19]} 26. Rf4 {[%emt 0:01:57]} Rd7 {[%emt 0:04:38]} 27. Nxe4 {[%emt 0:02:19]} d2 {[%emt 0:05:45]} 28. Qb3+ {[%emt 0:00:09]} Kh7 {[%emt 0:00:33]} 29. Nf2 {[%emt 0:00:56]} d1=Q+ {[%emt 0:01:39]} 30. Nxd1 {[%emt 0:00:06]} Qe1+ {[%emt 0:00:02]} 31. Kh2 {[%emt 0:00:14]} Rxd1 {[%emt 0:00:11]} 32. Rh4+ {[%emt 0:00:45]} Qxh4 {[%emt 0:00:14]} 33. Qxd1 {[%emt 0:00:03]} Qf2 {[%emt 0:01:30]} 34. Qb3 {[%emt 0:01:31]} f4 {[%emt 0:02:51]} 35. Qc3 {[%emt 0:00:53]} Kh6 {[%emt 0:01:38]} 36. a3 {[%emt 0:01:11]} g5 {[%emt 0:00:32]} 1/2-1/2

[Event "Slovakia Open Piestany-A 2022"]
[Site "Piestany"]
[Date "2022.07.15"]
[Round "6.24"]
[White "Travnicek, Krystof Mikulas"]
[Black "Mizicka, Matus"]
[Result "1-0"]
[ECO "B01"]
[WhiteElo "2138"]
[BlackElo "1915"]
[Annotator "ChessBase"]
[PlyCount "109"]
[EventDate "2022.07.12"]
[EventType "swiss"]
[EventCountry "SVK"]
[SourceTitle "playchess.com"]
[Source "ChessBase"]
[SourceQuality "1"]
[TimeControl "40/5400+30:1800+30"]

1. e4 {[%emt 0:00:05]} d5 {[%emt 0:13:33]} 2. exd5 {[%emt 0:00:14]} Nf6 {[%emt 0:00:07]} 3. Bb5+ {[%emt 0:05:06]} Bd7 {[%emt 0:01:39]} 4. Bc4 {[%emt 0:02:02]} b5 {[%emt 0:01:58]} 5. Bb3 {[%emt 0:01:10]} Bg4 {[%emt 0:00:10]} 6. f3 {[%emt 0:06:49]} Bf5 {[%emt 0:01:08]} 7. Ne2 {[%emt 0:08:00]} Nxd5 {[%emt 0:03:42]} 8. Nd4 {[%emt 0:09:25]} e6 {[%emt 0:13:42]} 9. Nxf5 {[%emt 0:06:26]} exf5 {[%emt 0:00:09]} 10. Qe2+ {[%emt 0:09:21]} Be7 {[%emt 0:00:08]} 11. Bxd5 {[%emt 0:05:00]} Qxd5 {[%emt 0:00:05]} 12. Nc3 {[%emt 0:00:09]} Qd7 {[%emt 0:00:09]} 13. Qxb5 {[%emt 0:02:13]} c6 {[%emt 0:00:20]} 14. Qc4 {[%emt 0:01:12]} O-O {[%emt 0:00:49]} 15. O-O {[%emt 0:01:09]} Bd6 {[%emt 0:01:35]} 16. d3 {[%emt 0:02:25]} Qc7 {[%emt 0:00:26]} 17. Qh4 {[%emt 0:05:56]} Nd7 {[%emt 0:02:43]} 18. Be3 {[%emt 0:05:26]} Rab8 {[%emt 0:03:42]} 19. Rab1 {[%emt 0:06:58]} Rb4 {[%emt 0:00:24]} 20. Qh3 {[%emt 0:01:28]} Re8 {[%emt 0:04:14]} 21. Bf2 {[%emt 0:03:38]} Re6 {[%emt 0:03:01]} 22. g3 {[%emt 0:02:33]} Rh6 {[%emt 0:06:05]} 23. Qxf5 {[%emt 0:03:10]} g6 {[%emt 0:07:09]} 24. Qg5 {[%emt 0:00:56]} Rh5 {[%emt 0:00:06]} 25. Qe3 {[%emt 0:01:24]} Ne5 {[%emt 0:02:20]} 26. Ne4 {[%emt 0:01:21]} Be7 {[%emt 0:11:36]} 27. c3 {[%emt 0:01:00]} Rxe4 {[%emt 0:13:03]} 28. Qxe4 {[%emt 0:02:06]} Qd7 {[%emt 0:01:10]} 29. Bd4 {[%emt 0:00:39]} Qh3 {[%emt 0:03:50]} 30. Rf2 {[%emt 0:00:23]} Bd6 {[%emt 0:03:20]} 31. Bxe5 {[%emt 0:02:19]} Rxe5 {[%emt 0:00:14]} 32. Qxc6 {[%emt 0:00:19]} Re6 {[%emt 0:00:41]} 33. f4 {[%emt 0:01:23]} Kg7 {[%emt 0:01:15]} 34. Qg2 {[%emt 0:00:22]} Qf5 {[%emt 0:00:34]} 35. Rd1 {[%emt 0:00:18]} Re3 {[%emt 0:01:36]} 36. d4 {[%emt 0:00:31]} h5 {[%emt 0:00:30]} 37. Re2 {[%emt 0:00:33]} Qg4 {[%emt 0:01:03]} 38. Rxe3 {[%emt 0:00:19]} Qxd1+ {[%emt 0:00:05]} 39. Qf1 {[%emt 0:00:16]} Qg4 {[%emt 0:00:24]} 40. Qf3 {[%emt 0:00:41]} Qf5 {[%emt 0:00:22]} 41. Qe4 {[%emt 0:33:02]} Qb5 {[%emt 0:02:07]} 42. Qc2 {[%emt 0:00:00]} h4 {[%emt 0:01:25]} 43. c4 {[%emt 0:00:00]} Qh5 {[%emt 0:00:11]} 44. Qe2 {[%emt 0:00:00]} Qf5 {[%emt 0:00:44]} 45. c5 {[%emt 0:00:00]} Bb8 {[%emt 0:08:12]} 46. Qd3 {[%emt 0:00:00]} Qg4 {[%emt 0:01:07]} 47. d5 {[%emt 0:00:00]} hxg3 {[%emt 0:01:11]} 48. hxg3 {[%emt 0:00:00]} g5 {[%emt 0:07:49]} 49. d6 {[%emt 0:00:00]} gxf4 {[%emt 0:01:27]} 50. Qd4+ {[%emt 0:00:00]} Kg6 {[%emt 0:01:09]} 51. Qxf4 {[%emt 0:00:00]} Qd1+ {[%emt 0:00:49]} 52. Qf1 {[%emt 0:00:00]} Qg4 {[%emt 0:00:43]} 53. Qd3+ {[%emt 0:00:00]} Kh6 {[%emt 0:01:07]} 54. Re4 {[%emt 0:00:00]} Qg5 {[%emt 0:00:52]} 55. Qe3 {[%emt 0:00:00]} 1-0